[Event "Titled Tuesday Blitz September 27 Early 2022"]
[White "Salman, Pavel"]
[Black "Rama, Tejas"]
[WhiteFideId "24153753"]
[BlackFideId "30907381"]
[WhiteElo "2039"]
[BlackElo "1513"]
[Result "1-0"]
[Round "08"]
[TimeControl "180+1"]
[Date "2022.09.27"]
[WhiteClock "0:00:48"]
[BlackClock "0:00:09"]

1. Nf3 {[%clk 0:02:59]}  Nf6 {[%clk 0:02:59]} 2. g3 {[%clk 0:02:59]}  g6 {[%clk 0:02:59]} 3. Bg2 {[%clk 0:03:00]}  Bg7 {[%clk 0:03:00]} 4. O-O {[%clk 0:03:01]}  O-O {[%clk 0:03:01]} 5. d3 {[%clk 0:03:01]}  d5 {[%clk 0:02:54]} 6. Nbd2 {[%clk 0:03:02]}  c5 {[%clk 0:02:52]} 7. e4 {[%clk 0:03:02]}  Nc6 {[%clk 0:02:50]} 8. c3 {[%clk 0:03:01]}  b6 {[%clk 0:02:37]} 9. Re1 {[%clk 0:03:01]}  Bb7 {[%clk 0:02:36]} 10. e5 {[%clk 0:03:01]}  Ne8 {[%clk 0:02:26]} 11. d4 {[%clk 0:02:59]}  e6 {[%clk 0:02:21]} 12. h4 {[%clk 0:02:59]}  Rc8 {[%clk 0:02:09]} 13. Nf1 {[%clk 0:02:59]}  Nc7 {[%clk 0:02:03]} 14. Bg5 {[%clk 0:02:58]}  Qd7 {[%clk 0:02:01]} 15. h5 {[%clk 0:02:58]}  cxd4 {[%clk 0:01:56]} 16. h6 {[%clk 0:02:55]}  Bh8 {[%clk 0:01:54]} 17. cxd4 {[%clk 0:02:55]}  Ba6 {[%clk 0:01:45]} 18. Ne3 {[%clk 0:02:52]}  f6 {[%clk 0:01:34]} 19. exf6 {[%clk 0:02:50]}  Bxf6 {[%clk 0:01:35]} 20. Bxf6 {[%clk 0:02:47]}  Rxf6 {[%clk 0:01:35]} 21. Ng4 {[%clk 0:02:48]}  Rf5 {[%clk 0:01:32]} 22. Bh3 {[%clk 0:02:37]}  Qe7 {[%clk 0:00:59]} 23. Rc1 {[%clk 0:02:28]}  Nb5 {[%clk 0:00:50]} 24. Nge5 {[%clk 0:02:25]}  Nxe5 {[%clk 0:00:46]} 25. Nxe5 {[%clk 0:01:57]}  Rf6 {[%clk 0:00:27]} 26. Rxc8+ {[%clk 0:01:53]}  Bxc8 {[%clk 0:00:26]} 27. Qd3 {[%clk 0:01:42]}  Nd6 {[%clk 0:00:22]} 28. Rc1 {[%clk 0:01:40]}  Bb7 {[%clk 0:00:21]} 29. Nc6 {[%clk 0:01:23]}  Bxc6 {[%clk 0:00:20]} 30. Rxc6 {[%clk 0:01:24]}  Ne4 {[%clk 0:00:20]} 31. Rc8+ {[%clk 0:01:19]}  Rf8 {[%clk 0:00:20]} 32. Rxf8+ {[%clk 0:01:12]}  Kxf8 {[%clk 0:00:21]} 33. Qa6 {[%clk 0:01:09]}  Qd7 {[%clk 0:00:11]} 34. Qa3+ {[%clk 0:01:07]}  Kf7 {[%clk 0:00:10]} 35. Qf3+ {[%clk 0:01:07]}  Ke7 {[%clk 0:00:11]} 36. Qf4 {[%clk 0:01:01]}  Qd6 {[%clk 0:00:11]} 37. Qh4+ {[%clk 0:00:56]}  g5 {[%clk 0:00:09]} 38. Qg4 {[%clk 0:00:49]}  Qb4 {[%clk 0:00:08]} 39. Qxe6+ {[%clk 0:00:48]}  Kd8 {[%clk 0:00:09]} 40. Qd7# {[%clk 0:00:48]} 1-0


[Site "https://www.chess.com"]

[Event "Titled Tuesday Blitz September 27 Early 2022"]
[White "Sanchez, Robert"]
[Black "Runets, Ivan"]
[WhiteFideId "2034360"]
[BlackFideId "13511564"]
[WhiteElo "2393"]
[BlackElo "1962"]
[Result "0-1"]
[Round "08"]
[TimeControl "180+1"]
[Date "2022.09.27"]
[WhiteClock "0:00:38"]
[BlackClock "0:00:21"]

1. e4 {[%clk 0:03:00]}  c5 {[%clk 0:02:59]} 2. Nf3 {[%clk 0:03:01]}  e6 {[%clk 0:02:59]} 3. d4 {[%clk 0:03:01]}  cxd4 {[%clk 0:02:59]} 4. Nxd4 {[%clk 0:03:02]}  Nf6 {[%clk 0:02:59]} 5. Nc3 {[%clk 0:03:02]}  d6 {[%clk 0:02:58]} 6. Be3 {[%clk 0:03:01]}  a6 {[%clk 0:02:58]} 7. f3 {[%clk 0:03:01]}  b5 {[%clk 0:02:58]} 8. Qd2 {[%clk 0:03:02]}  Bb7 {[%clk 0:02:58]} 9. O-O-O {[%clk 0:03:02]}  Nbd7 {[%clk 0:02:58]} 10. g4 {[%clk 0:03:02]}  Nb6 {[%clk 0:02:47]} 11. g5 {[%clk 0:02:58]}  Nfd7 {[%clk 0:02:47]} 12. Bd3 {[%clk 0:02:56]}  b4 {[%clk 0:02:31]} 13. Nce2 {[%clk 0:02:55]}  d5 {[%clk 0:02:32]} 14. Kb1 {[%clk 0:02:51]}  Ne5 {[%clk 0:02:27]} 15. Qe1 {[%clk 0:02:32]}  Nxd3 {[%clk 0:02:24]} 16. cxd3 {[%clk 0:02:29]}  Be7 {[%clk 0:02:21]} 17. h4 {[%clk 0:02:27]}  a5 {[%clk 0:02:16]} 18. e5 {[%clk 0:02:20]}  Ba6 {[%clk 0:02:13]} 19. Nc6 {[%clk 0:02:15]}  Qc7 {[%clk 0:02:09]} 20. Nxe7 {[%clk 0:02:13]}  Kxe7 {[%clk 0:02:10]} 21. Rc1 {[%clk 0:02:12]}  Bxd3+ {[%clk 0:01:59]} 22. Ka1 {[%clk 0:02:12]}  Nc4 {[%clk 0:01:56]} 23. Nf4 {[%clk 0:01:58]}  Bf5 {[%clk 0:01:32]} 24. Bd4 {[%clk 0:01:47]}  Qb7 {[%clk 0:01:03]} 25. Bc5+ {[%clk 0:01:43]}  Kd7 {[%clk 0:01:02]} 26. Qd1 {[%clk 0:01:28]}  Qb5 {[%clk 0:00:59]} 27. Bd4 {[%clk 0:01:17]}  Rhc8 {[%clk 0:00:55]} 28. h5 {[%clk 0:01:14]}  a4 {[%clk 0:00:53]} 29. g6 {[%clk 0:01:11]}  fxg6 {[%clk 0:00:50]} 30. hxg6 {[%clk 0:01:11]}  h6 {[%clk 0:00:32]} 31. Rh5 {[%clk 0:01:11]}  Rf8 {[%clk 0:00:29]} 32. Nd3 {[%clk 0:00:55]}  Bxd3 {[%clk 0:00:29]} 33. Qxd3 {[%clk 0:00:54]}  b3 {[%clk 0:00:25]} 34. a3 {[%clk 0:00:53]}  Nxa3 {[%clk 0:00:20]} 35. Qxb5+ {[%clk 0:00:38]}  Nxb5 {[%clk 0:00:21]} 0-1


[Site "https://www.chess.com"]

[Event "Titled Tuesday Blitz September 27 Early 2022"]
[White "Saydaliev, Saidakbar"]
[Black "Aizpurua, Patrick Emilio"]
[WhiteFideId "14203693"]
[BlackFideId "6600522"]
[WhiteElo "2265"]
[BlackElo "2378"]
[Result "1-0"]
[Round "08"]
[TimeControl "180+1"]
[Date "2022.09.27"]
[WhiteClock "0:00:17"]
[BlackClock "0:00:07"]

1. e4 {[%clk 0:03:00]}  e5 {[%clk 0:03:00]} 2. Nf3 {[%clk 0:03:00]}  Nc6 {[%clk 0:03:00]} 3. Bb5 {[%clk 0:03:00]}  a6 {[%clk 0:02:59]} 4. Ba4 {[%clk 0:03:01]}  Nf6 {[%clk 0:02:59]} 5. O-O {[%clk 0:02:59]}  Be7 {[%clk 0:02:59]} 6. d3 {[%clk 0:02:58]}  b5 {[%clk 0:02:59]} 7. Bb3 {[%clk 0:02:59]}  d6 {[%clk 0:03:00]} 8. a3 {[%clk 0:02:58]}  O-O {[%clk 0:02:59]} 9. Nc3 {[%clk 0:02:59]}  Be6 {[%clk 0:02:59]} 10. Nd5 {[%clk 0:02:56]}  Nb8 {[%clk 0:02:57]} 11. h3 {[%clk 0:02:52]}  Nbd7 {[%clk 0:02:57]} 12. Nxe7+ {[%clk 0:02:50]}  Qxe7 {[%clk 0:02:57]} 13. Bg5 {[%clk 0:02:49]}  c5 {[%clk 0:02:48]} 14. Bxe6 {[%clk 0:02:42]}  Qxe6 {[%clk 0:02:49]} 15. a4 {[%clk 0:02:42]}  c4 {[%clk 0:02:31]} 16. Be3 {[%clk 0:02:37]}  d5 {[%clk 0:02:14]} 17. exd5 {[%clk 0:02:30]}  Nxd5 {[%clk 0:02:11]} 18. Re1 {[%clk 0:02:30]}  cxd3 {[%clk 0:02:05]} 19. cxd3 {[%clk 0:02:24]}  Qd6 {[%clk 0:01:48]} 20. axb5 {[%clk 0:02:21]}  axb5 {[%clk 0:01:48]} 21. Rxa8 {[%clk 0:02:19]}  Rxa8 {[%clk 0:01:49]} 22. Qb3 {[%clk 0:02:20]}  b4 {[%clk 0:01:30]} 23. Bd2 {[%clk 0:02:16]}  h6 {[%clk 0:01:26]} 24. d4 {[%clk 0:02:13]}  exd4 {[%clk 0:01:20]} 25. Nxd4 {[%clk 0:02:14]}  N7f6 {[%clk 0:01:13]} 26. Nf5 {[%clk 0:02:03]}  Qd7 {[%clk 0:01:11]} 27. Ne3 {[%clk 0:01:56]}  Nf4 {[%clk 0:01:02]} 28. Bxb4 {[%clk 0:01:56]}  Rb8 {[%clk 0:01:01]} 29. Qa3 {[%clk 0:01:42]}  N6d5 {[%clk 0:00:49]} 30. Bd6 {[%clk 0:01:31]}  Rb6 {[%clk 0:00:29]} 31. Qa8+ {[%clk 0:00:52]}  Kh7 {[%clk 0:00:23]} 32. Bxf4 {[%clk 0:00:52]}  Nxf4 {[%clk 0:00:20]} 33. Qe4+ {[%clk 0:00:52]}  Ng6 {[%clk 0:00:20]} 34. Rd1 {[%clk 0:00:48]}  Qa7 {[%clk 0:00:15]} 35. b4 {[%clk 0:00:45]}  Qa4 {[%clk 0:00:15]} 36. Rd4 {[%clk 0:00:45]}  Qa1+ {[%clk 0:00:13]} 37. Kh2 {[%clk 0:00:45]}  Re6 {[%clk 0:00:14]} 38. Qd3 {[%clk 0:00:45]}  Qb2 {[%clk 0:00:12]} 39. Rf4 {[%clk 0:00:35]}  Rf6 {[%clk 0:00:06]} 40. Rxf6 {[%clk 0:00:32]}  gxf6 {[%clk 0:00:07]} 41. Ng4 {[%clk 0:00:30]}  h5 {[%clk 0:00:06]} 42. Ne3 {[%clk 0:00:26]}  Qxf2 {[%clk 0:00:06]} 43. Nd5 {[%clk 0:00:25]}  Qb2 {[%clk 0:00:04]} 44. Qf5 {[%clk 0:00:19]}  Kg7 {[%clk 0:00:03]} 45. Qxh5 {[%clk 0:00:19]}  Qd2 {[%clk 0:00:03]} 46. Qf5 {[%clk 0:00:19]}  Qd4 {[%clk 0:00:03]} 47. b5 {[%clk 0:00:18]}  Kf8 {[%clk 0:00:01]} 48. Nxf6 {[%clk 0:00:18]}  Qd6+ {[%clk 0:00:01]} 49. Kg1 {[%clk 0:00:17]}  Ne7 {[%clk 0:00:02]} 50. Qg5 {[%clk 0:00:15]}  Ng6 {[%clk 0:00:03]} 51. Ng4 {[%clk 0:00:13]}  Qb6+ {[%clk 0:00:02]} 52. Kh2 {[%clk 0:00:13]}  Ne7 {[%clk 0:00:03]} 53. Qh6+ {[%clk 0:00:13]}  Qxh6 {[%clk 0:00:03]} 54. Nxh6 {[%clk 0:00:14]}  Nd5 {[%clk 0:00:03]} 55. Nf5 {[%clk 0:00:14]}  Ke8 {[%clk 0:00:03]} 56. h4 {[%clk 0:00:14]}  f6 {[%clk 0:00:03]} 57. h5 {[%clk 0:00:14]}  Kf7 {[%clk 0:00:03]} 58. Kg3 {[%clk 0:00:15]}  Nb6 {[%clk 0:00:03]} 59. Kg4 {[%clk 0:00:15]}  Nc4 {[%clk 0:00:04]} 60. Kf4 {[%clk 0:00:15]}  Ne5 {[%clk 0:00:04]} 61. b6 {[%clk 0:00:15]}  Nd3+ {[%clk 0:00:05]} 62. Ke4 {[%clk 0:00:15]}  Nc5+ {[%clk 0:00:06]} 63. Kd5 {[%clk 0:00:15]}  Nb7 {[%clk 0:00:07]} 64. Kc6 {[%clk 0:00:16]}  Na5+ {[%clk 0:00:07]} 65. Kc7 {[%clk 0:00:16]}  Ke6 {[%clk 0:00:07]} 66. g4 {[%clk 0:00:16]}  Kf7 {[%clk 0:00:07]} 67. b7 {[%clk 0:00:17]} 1-0


[Site "https://www.chess.com"]

[Event "Titled Tuesday Blitz September 27 Early 2022"]
[White "Shapiro, Daniel"]
[Black "Namitbir Singh Walia"]
[WhiteFideId "2001780"]
[BlackFideId "35071068"]
[WhiteElo "2209"]
[BlackElo "1664"]
[Result "1-0"]
[Round "08"]
[TimeControl "180+1"]
[Date "2022.09.27"]
[WhiteClock "0:00:02"]
[BlackClock "0:00:01"]

1. d4 {[%clk 0:03:00]}  Nf6 {[%clk 0:02:54]} 2. c4 {[%clk 0:03:00]}  c5 {[%clk 0:02:54]} 3. d5 {[%clk 0:03:00]}  e6 {[%clk 0:02:55]} 4. Nc3 {[%clk 0:02:59]}  exd5 {[%clk 0:02:55]} 5. cxd5 {[%clk 0:03:00]}  d6 {[%clk 0:02:56]} 6. e4 {[%clk 0:03:00]}  g6 {[%clk 0:02:56]} 7. h3 {[%clk 0:03:00]}  Bg7 {[%clk 0:02:55]} 8. Nf3 {[%clk 0:03:00]}  O-O {[%clk 0:02:55]} 9. Bd3 {[%clk 0:03:00]}  b5 {[%clk 0:02:52]} 10. Nxb5 {[%clk 0:03:00]}  Nxe4 {[%clk 0:02:17]} 11. O-O {[%clk 0:03:00]}  a6 {[%clk 0:02:04]} 12. Na3 {[%clk 0:02:59]}  Nf6 {[%clk 0:02:00]} 13. Nc4 {[%clk 0:02:55]}  Bb7 {[%clk 0:01:58]} 14. Bf4 {[%clk 0:02:54]}  Nxd5 {[%clk 0:01:01]} 15. Bxd6 {[%clk 0:02:51]}  Re8 {[%clk 0:00:51]} 16. Re1 {[%clk 0:02:23]}  Nd7 {[%clk 0:00:45]} 17. Bg3 {[%clk 0:02:11]}  Qf6 {[%clk 0:00:37]} 18. Rxe8+ {[%clk 0:02:05]}  Rxe8 {[%clk 0:00:38]} 19. Nd6 {[%clk 0:02:05]}  Rb8 {[%clk 0:00:18]} 20. Ne4 {[%clk 0:02:05]}  Qd8 {[%clk 0:00:18]} 21. Bxb8 {[%clk 0:02:04]}  Qxb8 {[%clk 0:00:19]} 22. Qb3 {[%clk 0:01:27]}  Nb4 {[%clk 0:00:18]} 23. Neg5 {[%clk 0:01:10]}  Bd5 {[%clk 0:00:18]} 24. Bc4 {[%clk 0:01:10]}  Nb6 {[%clk 0:00:12]} 25. Bxd5 {[%clk 0:01:07]}  N4xd5 {[%clk 0:00:13]} 26. Rd1 {[%clk 0:01:01]}  c4 {[%clk 0:00:13]} 27. Qc2 {[%clk 0:00:51]}  Qf4 {[%clk 0:00:14]} 28. Qd2 {[%clk 0:00:47]}  Qf6 {[%clk 0:00:10]} 29. Re1 {[%clk 0:00:37]}  h6 {[%clk 0:00:06]} 30. Re8+ {[%clk 0:00:28]}  Bf8 {[%clk 0:00:06]} 31. Ne4 {[%clk 0:00:25]}  Qc6 {[%clk 0:00:03]} 32. Rd8 {[%clk 0:00:19]}  Qc7 {[%clk 0:00:02]} 33. Rxd5 {[%clk 0:00:18]}  Nxd5 {[%clk 0:00:03]} 34. Qxd5 {[%clk 0:00:18]}  Bg7 {[%clk 0:00:04]} 35. Nfd2 {[%clk 0:00:14]}  Bxb2 {[%clk 0:00:01]} 36. Qxc4 {[%clk 0:00:13]}  Qf4 {[%clk 0:00:02]} 37. g3 {[%clk 0:00:12]}  Qf5 {[%clk 0:00:02]} 38. Qe2 {[%clk 0:00:10]}  Be5 {[%clk 0:00:01]} 39. Nc4 {[%clk 0:00:09]}  Bg7 {[%clk 0:00:02]} 40. g4 {[%clk 0:00:09]}  Qb5 {[%clk 0:00:02]} 41. Ned2 {[%clk 0:00:07]}  Qb1+ {[%clk 0:00:02]} 42. Kg2 {[%clk 0:00:07]}  Qxa2 {[%clk 0:00:02]} 43. Ne3 {[%clk 0:00:05]}  Qe6 {[%clk 0:00:01]} 44. Qf3 {[%clk 0:00:03]}  a5 {[%clk 0:00:01]} 45. Qd5 {[%clk 0:00:03]}  Qb6 {[%clk 0:00:01]} 46. Ne4 {[%clk 0:00:02]} 1-0


[Site "https://www.chess.com"]

[Event "Titled Tuesday Blitz September 27 Early 2022"]
[White "Shashikant, Kutwal"]
[Black "Carrasco Miranda, Andres"]
[WhiteFideId "5006520"]
[BlackFideId "3405990"]
[WhiteElo "2321"]
[BlackElo "2177"]
[Result "0-1"]
[Round "08"]
[TimeControl "180+1"]
[Date "2022.09.27"]
[WhiteClock "0:00:06"]
[BlackClock "0:00:07"]

1. Nf3 {[%clk 0:02:59]}  Nf6 {[%clk 0:02:58]} 2. g3 {[%clk 0:02:59]}  g6 {[%clk 0:02:56]} 3. Bg2 {[%clk 0:03:00]}  Bg7 {[%clk 0:02:56]} 4. O-O {[%clk 0:03:01]}  O-O {[%clk 0:02:56]} 5. c4 {[%clk 0:03:01]}  c5 {[%clk 0:02:56]} 6. Nc3 {[%clk 0:03:02]}  d5 {[%clk 0:02:56]} 7. d4 {[%clk 0:02:54]}  cxd4 {[%clk 0:02:51]} 8. Qxd4 {[%clk 0:02:53]}  Nc6 {[%clk 0:02:50]} 9. Qh4 {[%clk 0:02:50]}  d4 {[%clk 0:02:47]} 10. Nd5 {[%clk 0:01:59]}  e6 {[%clk 0:02:44]} 11. Nxf6+ {[%clk 0:01:54]}  Bxf6 {[%clk 0:02:45]} 12. Bg5 {[%clk 0:01:50]}  Bxg5 {[%clk 0:02:42]} 13. Nxg5 {[%clk 0:01:50]}  h5 {[%clk 0:02:42]} 14. Rad1 {[%clk 0:01:15]}  e5 {[%clk 0:02:17]} 15. f4 {[%clk 0:01:04]}  f6 {[%clk 0:02:06]} 16. Bd5+ {[%clk 0:00:49]}  Kg7 {[%clk 0:02:04]} 17. Ne6+ {[%clk 0:00:45]}  Bxe6 {[%clk 0:02:04]} 18. Bxe6 {[%clk 0:00:46]}  f5 {[%clk 0:00:56]} 19. fxe5 {[%clk 0:00:29]}  Qxh4 {[%clk 0:00:54]} 20. gxh4 {[%clk 0:00:30]}  Rfe8 {[%clk 0:00:50]} 21. Bd5 {[%clk 0:00:29]}  Rxe5 {[%clk 0:00:50]} 22. Rf2 {[%clk 0:00:22]}  Rd8 {[%clk 0:00:46]} 23. Kf1 {[%clk 0:00:16]}  Kf6 {[%clk 0:00:44]} 24. Rf4 {[%clk 0:00:15]}  Rde8 {[%clk 0:00:39]} 25. Rd2 {[%clk 0:00:10]}  Re4 {[%clk 0:00:22]} 26. Bxe4 {[%clk 0:00:10]}  Rxe4 {[%clk 0:00:23]} 27. Rf3 {[%clk 0:00:05]}  Rxh4 {[%clk 0:00:21]} 28. Kg2 {[%clk 0:00:04]}  Re4 {[%clk 0:00:20]} 29. a3 {[%clk 0:00:03]}  g5 {[%clk 0:00:20]} 30. Rb3 {[%clk 0:00:03]}  b6 {[%clk 0:00:20]} 31. c5 {[%clk 0:00:03]}  bxc5 {[%clk 0:00:20]} 32. Rb7 {[%clk 0:00:02]}  f4 {[%clk 0:00:18]} 33. Rc7 {[%clk 0:00:02]}  Re6 {[%clk 0:00:17]} 34. Rc2 {[%clk 0:00:03]}  g4 {[%clk 0:00:13]} 35. Rxc5 {[%clk 0:00:03]}  Rxe2+ {[%clk 0:00:13]} 36. Kf1 {[%clk 0:00:03]}  Rxh2 {[%clk 0:00:08]} 37. R7xc6+ {[%clk 0:00:04]}  Ke7 {[%clk 0:00:08]} 38. Rf5 {[%clk 0:00:03]}  f3 {[%clk 0:00:08]} 39. Rh6 {[%clk 0:00:03]}  d3 {[%clk 0:00:07]} 40. Rhxh5 {[%clk 0:00:02]}  d2 {[%clk 0:00:06]} 41. Rd5 {[%clk 0:00:01]}  d1=Q+ {[%clk 0:00:06]} 42. Rxd1 {[%clk 0:00:01]}  Rxh5 {[%clk 0:00:06]} 43. Kf2 {[%clk 0:00:02]}  Rh2+ {[%clk 0:00:05]} 44. Ke3 {[%clk 0:00:03]}  Re2+ {[%clk 0:00:05]} 45. Kf4 {[%clk 0:00:03]}  Rg2 {[%clk 0:00:06]} 46. b4 {[%clk 0:00:02]}  f2 {[%clk 0:00:04]} 47. Rf1 {[%clk 0:00:02]}  Ke6 {[%clk 0:00:04]} 48. Ke3 {[%clk 0:00:02]}  g3 {[%clk 0:00:04]} 49. Kf3 {[%clk 0:00:02]}  Rg1 {[%clk 0:00:05]} 50. Ke2 {[%clk 0:00:03]}  Rxf1 {[%clk 0:00:05]} 51. Kxf1 {[%clk 0:00:04]}  Ke5 {[%clk 0:00:05]} 52. a4 {[%clk 0:00:05]}  Ke4 {[%clk 0:00:06]} 53. Kg2 {[%clk 0:00:05]}  Ke3 {[%clk 0:00:06]} 54. Kf1 {[%clk 0:00:06]}  Kf3 {[%clk 0:00:06]} 55. b5 {[%clk 0:00:06]}  g2# {[%clk 0:00:07]} 0-1


[Site "https://www.chess.com"]

[Event "Titled Tuesday Blitz September 27 Early 2022"]
[White "Shuvalov, Evgenij"]
[Black "Vignesh, N R"]
[WhiteFideId "4187237"]
[BlackFideId "25012215"]
[WhiteElo "2033"]
[BlackElo "2363"]
[Result "0-1"]
[Round "08"]
[TimeControl "180+1"]
[Date "2022.09.27"]
[WhiteClock "0:01:23"]
[BlackClock "0:01:54"]

1. d4 {[%clk 0:03:00]}  Nf6 {[%clk 0:02:59]} 2. c4 {[%clk 0:03:00]}  e6 {[%clk 0:02:59]} 3. Nf3 {[%clk 0:02:59]}  d5 {[%clk 0:02:59]} 4. Nc3 {[%clk 0:02:55]}  c6 {[%clk 0:02:59]} 5. cxd5 {[%clk 0:02:54]}  exd5 {[%clk 0:02:59]} 6. Bg5 {[%clk 0:02:54]}  Bf5 {[%clk 0:02:57]} 7. Qb3 {[%clk 0:02:48]}  Qb6 {[%clk 0:02:56]} 8. Bxf6 {[%clk 0:02:39]}  Qxb3 {[%clk 0:02:55]} 9. axb3 {[%clk 0:02:38]}  gxf6 {[%clk 0:02:56]} 10. Nh4 {[%clk 0:02:24]}  Bc2 {[%clk 0:02:55]} 11. Kd2 {[%clk 0:02:17]}  Bxb3 {[%clk 0:02:55]} 12. e4 {[%clk 0:02:15]}  dxe4 {[%clk 0:02:54]} 13. Nxe4 {[%clk 0:02:14]}  Nd7 {[%clk 0:02:54]} 14. Kc3 {[%clk 0:02:11]}  Be6 {[%clk 0:02:53]} 15. Bd3 {[%clk 0:02:06]}  Be7 {[%clk 0:02:51]} 16. Ng3 {[%clk 0:02:04]}  Nb6 {[%clk 0:02:43]} 17. Nhf5 {[%clk 0:02:01]}  Nd5+ {[%clk 0:02:44]} 18. Kd2 {[%clk 0:01:58]}  a6 {[%clk 0:02:41]} 19. Rhe1 {[%clk 0:01:56]}  Bb4+ {[%clk 0:02:40]} 20. Ke2 {[%clk 0:01:51]}  Nf4+ {[%clk 0:02:36]} 21. Ke3 {[%clk 0:01:50]}  Nxd3 {[%clk 0:02:35]} 22. Kxd3 {[%clk 0:01:49]}  Bxe1 {[%clk 0:02:35]} 23. Rxe1 {[%clk 0:01:50]}  O-O-O {[%clk 0:02:35]} 24. Kc3 {[%clk 0:01:46]}  Kc7 {[%clk 0:02:30]} 25. Re4 {[%clk 0:01:43]}  Rd5 {[%clk 0:02:20]} 26. Rf4 {[%clk 0:01:41]}  Rb5 {[%clk 0:02:18]} 27. b4 {[%clk 0:01:38]}  a5 {[%clk 0:02:17]} 28. bxa5 {[%clk 0:01:38]}  Ra8 {[%clk 0:02:18]} 29. Ne3 {[%clk 0:01:35]}  Raxa5 {[%clk 0:02:18]} 30. Kd3 {[%clk 0:01:33]}  f5 {[%clk 0:02:12]} 31. Ke2 {[%clk 0:01:31]}  Ra2+ {[%clk 0:02:09]} 32. Kf3 {[%clk 0:01:32]}  Rbb2 {[%clk 0:02:09]} 33. Nh1 {[%clk 0:01:27]}  Ra3 {[%clk 0:01:59]} 34. Ng3 {[%clk 0:01:25]}  Bd5+ {[%clk 0:01:56]} 35. Ne4 {[%clk 0:01:22]}  Bxe4+ {[%clk 0:01:55]} 36. Kg3 {[%clk 0:01:22]}  Rxe3+ {[%clk 0:01:54]} 37. fxe3 {[%clk 0:01:22]}  Rxg2+ {[%clk 0:01:54]} 38. Kh3 {[%clk 0:01:23]}  Rg6 {[%clk 0:01:54]} 0-1


[Site "https://www.chess.com"]

[Event "Titled Tuesday Blitz September 27 Early 2022"]
[White "Shyaamnikhil P"]
[Black "Murtazin, Ruslan"]
[WhiteFideId "5024218"]
[BlackFideId "24175960"]
[WhiteElo "2273"]
[BlackElo "2212"]
[Result "1-0"]
[Round "08"]
[TimeControl "180+1"]
[Date "2022.09.27"]
[WhiteClock "0:00:09"]
[BlackClock "0:00:02"]

1. d4 {[%clk 0:03:00]}  Nf6 {[%clk 0:02:59]} 2. Nf3 {[%clk 0:03:00]}  g6 {[%clk 0:02:59]} 3. g3 {[%clk 0:03:00]}  Bg7 {[%clk 0:02:59]} 4. Bg2 {[%clk 0:03:01]}  O-O {[%clk 0:03:00]} 5. O-O {[%clk 0:03:01]}  d6 {[%clk 0:03:01]} 6. Nbd2 {[%clk 0:02:56]}  d5 {[%clk 0:02:59]} 7. a4 {[%clk 0:02:56]}  a5 {[%clk 0:02:58]} 8. Ne5 {[%clk 0:02:45]}  Nbd7 {[%clk 0:02:52]} 9. Nd3 {[%clk 0:02:38]}  b6 {[%clk 0:02:40]} 10. c4 {[%clk 0:02:36]}  Bb7 {[%clk 0:02:40]} 11. e3 {[%clk 0:02:18]}  e6 {[%clk 0:02:29]} 12. b3 {[%clk 0:02:12]}  Qb8 {[%clk 0:02:08]} 13. Ba3 {[%clk 0:02:10]}  Rd8 {[%clk 0:02:07]} 14. Qc2 {[%clk 0:02:08]}  dxc4 {[%clk 0:02:07]} 15. Nxc4 {[%clk 0:02:06]}  Bxg2 {[%clk 0:02:06]} 16. Kxg2 {[%clk 0:02:06]}  Qb7+ {[%clk 0:02:06]} 17. f3 {[%clk 0:02:06]}  Nd5 {[%clk 0:01:58]} 18. e4 {[%clk 0:01:57]}  Nb4 {[%clk 0:01:31]} 19. Nxb4 {[%clk 0:01:55]}  axb4 {[%clk 0:01:32]} 20. Bb2 {[%clk 0:01:55]}  b5 {[%clk 0:01:07]} 21. axb5 {[%clk 0:01:54]}  Rxa1 {[%clk 0:01:08]} 22. Rxa1 {[%clk 0:01:52]}  Qxb5 {[%clk 0:01:09]} 23. Ra5 {[%clk 0:01:48]}  Qb7 {[%clk 0:01:08]} 24. Qd2 {[%clk 0:01:36]}  Nb8 {[%clk 0:00:53]} 25. d5 {[%clk 0:01:19]}  Bxb2 {[%clk 0:00:41]} 26. Nxb2 {[%clk 0:01:20]}  exd5 {[%clk 0:00:23]} 27. Rxd5 {[%clk 0:01:13]}  Rxd5 {[%clk 0:00:23]} 28. exd5 {[%clk 0:01:14]}  Nd7 {[%clk 0:00:20]} 29. Nc4 {[%clk 0:01:10]}  Nf6 {[%clk 0:00:18]} 30. Ne3 {[%clk 0:01:09]}  Qb6 {[%clk 0:00:14]} 31. h4 {[%clk 0:01:07]}  h5 {[%clk 0:00:14]} 32. Qd3 {[%clk 0:01:06]}  Qc5 {[%clk 0:00:13]} 33. Kf2 {[%clk 0:01:04]}  Kg7 {[%clk 0:00:11]} 34. Qc4 {[%clk 0:00:56]}  Qd6 {[%clk 0:00:08]} 35. Kg2 {[%clk 0:00:43]}  Kg8 {[%clk 0:00:07]} 36. Kf2 {[%clk 0:00:43]}  Kh7 {[%clk 0:00:07]} 37. Kg2 {[%clk 0:00:42]}  Nd7 {[%clk 0:00:06]} 38. Kf2 {[%clk 0:00:40]}  Ne5 {[%clk 0:00:06]} 39. Qe4 {[%clk 0:00:39]}  Nd7 {[%clk 0:00:05]} 40. Qd4 {[%clk 0:00:38]}  Nf6 {[%clk 0:00:04]} 41. Qc4 {[%clk 0:00:35]}  Nd7 {[%clk 0:00:04]} 42. Qd4 {[%clk 0:00:33]}  c5 {[%clk 0:00:04]} 43. Qe4 {[%clk 0:00:30]}  Nf6 {[%clk 0:00:04]} 44. Qc4 {[%clk 0:00:29]}  Nd7 {[%clk 0:00:04]} 45. Qb5 {[%clk 0:00:26]}  Ne5 {[%clk 0:00:03]} 46. Qe8 {[%clk 0:00:22]}  Qf6 {[%clk 0:00:03]} 47. f4 {[%clk 0:00:20]}  Nd3+ {[%clk 0:00:02]} 48. Kf3 {[%clk 0:00:20]}  Kg7 {[%clk 0:00:02]} 49. Qe4 {[%clk 0:00:18]}  Qc3 {[%clk 0:00:02]} 50. d6 {[%clk 0:00:18]}  Qd2 {[%clk 0:00:02]} 51. Qd5 {[%clk 0:00:13]}  Qf2+ {[%clk 0:00:01]} 52. Ke4 {[%clk 0:00:13]}  Nb2 {[%clk 0:00:02]} 53. Qe5+ {[%clk 0:00:12]}  Kh7 {[%clk 0:00:02]} 54. d7 {[%clk 0:00:12]}  Qd2 {[%clk 0:00:02]} 55. Qe7 {[%clk 0:00:12]}  Qd3+ {[%clk 0:00:02]} 56. Kf3 {[%clk 0:00:11]}  Nd1 {[%clk 0:00:02]} 57. Qxf7+ {[%clk 0:00:10]}  Kh6 {[%clk 0:00:02]} 58. Qf8+ {[%clk 0:00:10]}  Kh7 {[%clk 0:00:02]} 59. Qe7+ {[%clk 0:00:10]}  Kh6 {[%clk 0:00:02]} 60. d8=Q {[%clk 0:00:09]} 1-0


[Site "https://www.chess.com"]

[Event "Titled Tuesday Blitz September 27 Early 2022"]
[White "Sipila, Vilka"]
[Black "Zhigalko, Sergei"]
[WhiteFideId "505455"]
[BlackFideId "13502956"]
[WhiteElo "2329"]
[BlackElo "2662"]
[Result "0-1"]
[Round "08"]
[TimeControl "180+1"]
[Date "2022.09.27"]
[WhiteClock "0:01:57"]
[BlackClock "0:01:35"]

1. b3 {[%clk 0:03:00]}  e5 {[%clk 0:02:58]} 2. Bb2 {[%clk 0:03:01]}  d6 {[%clk 0:02:58]} 3. e3 {[%clk 0:03:00]}  Nf6 {[%clk 0:02:58]} 4. c4 {[%clk 0:03:01]}  c6 {[%clk 0:02:58]} 5. Nc3 {[%clk 0:03:01]}  Be7 {[%clk 0:02:57]} 6. d4 {[%clk 0:03:01]}  e4 {[%clk 0:02:54]} 7. d5 {[%clk 0:02:48]}  O-O {[%clk 0:02:48]} 8. Nge2 {[%clk 0:02:48]}  Bf5 {[%clk 0:02:44]} 9. Ng3 {[%clk 0:02:36]}  Bg6 {[%clk 0:02:44]} 10. h4 {[%clk 0:02:36]}  h6 {[%clk 0:02:40]} 11. h5 {[%clk 0:02:36]}  Bh7 {[%clk 0:02:40]} 12. Qd4 {[%clk 0:02:34]}  Na6 {[%clk 0:02:07]} 13. dxc6 {[%clk 0:02:24]}  bxc6 {[%clk 0:01:39]} 14. Ncxe4 {[%clk 0:02:20]}  Nb4 {[%clk 0:01:37]} 15. Nxf6+ {[%clk 0:01:57]}  Bxf6 {[%clk 0:01:35]} 16. Qd2 {[%clk 0:01:57]}  Nc2+ {[%clk 0:01:35]} 0-1


[Site "https://www.chess.com"]